[Event "4th Sabbiadoro-Master 2018"]
[Site "Lignano Sabbiadoro"]
[Date "2018.08.03"]
[Round "7.8"]
[White "Siclari, Giovanni"]
[Black "Peric, Slavisa"]
[Result "1/2-1/2"]
[ECO "D27"]
[WhiteElo "2185"]
[BlackElo "2120"]
[Annotator "NA"]
[PlyCount "35"]
[EventDate "2018.07.29"]
[EventType "swiss"]
[EventCountry "ITA"]
[SourceTitle "playchess.com"]
[Source "ChessBase"]
[SourceQuality "1"]
[TimeControl "5400+30"]

1. Nf3 {[%emt 0:00:30]} d5 {[%emt 0:05:30]} 2. d4 {[%emt 0:00:00]} e6 {[%emt 0:00:30]} 3. c4 {[%emt 0:01:00]} dxc4 {[%emt 0:00:00]} 4. e3 {[%emt 0:02:30]} Nf6 {[%emt 0:05:00]} 5. Bxc4 {[%emt 0:00:30]} a6 {[%emt 0:00:30]} 6. a4 {[%emt 0:01:30]} c5 {[%emt 0:00:30]} 7. O-O {[%emt 0:00:30]} Nc6 {[%emt 0:00:30]} 8. Qe2 {[%emt 0:01:30]} Qc7 {[%emt 0:02:30]} 9. Nc3 {[%emt 0:03:30]} Be7 {[%emt 0:00:30]} 10. h3 {[%emt 0:11:30]} O-O {[%emt 0:03:30]} 11. dxc5 {[%emt 0:04:30]} Bxc5 {[%emt 0:02:30]} 12. e4 {[%emt 0:01:30]} Ne5 {[%emt 0:09:30]} 13. Nxe5 {[%emt 0:11:30]} Qxe5 {[%emt 0:05:30]} 14. Kh1 {[%emt 0:10:30]} Nh5 {[%emt 0:02:30]} 15. Qg4 {[%emt 0:12:30]} Nf6 {[%emt 0:13:30]} 16. Qe2 {[%emt 0:15:25]} Nh5 {[%emt 0:04:30]} 17. Qg4 {[%emt 0:02:18]} Nf6 {[%emt 0:00:30]} 18. Qe2 1/2-1/2

[Event "4th Sabbiadoro-Master 2018"]
[Site "Lignano Sabbiadoro"]
[Date "2018.08.03"]
[Round "7.9"]
[White "Sponchiado, Dario"]
[Black "Sgnaolin, Davide"]
[Result "0-1"]
[ECO "A36"]
[WhiteElo "2059"]
[BlackElo "2267"]
[Annotator "NA"]
[PlyCount "54"]
[EventDate "2018.07.29"]
[EventType "swiss"]
[EventCountry "ITA"]
[SourceTitle "playchess.com"]
[Source "ChessBase"]
[SourceQuality "1"]
[TimeControl "5400+30"]

1. c4 {[%emt 0:03:30]} c5 {[%emt 0:00:30]} 2. Nc3 {[%emt 0:01:30]} Nc6 {[%emt 0:00:30]} 3. g3 {[%emt 0:00:30]} g6 {[%emt 0:00:30]} 4. Bg2 {[%emt 0:00:00]} Bg7 {[%emt 0:00:00]} 5. e3 {[%emt 0:03:00]} e5 {[%emt 0:01:00]} 6. Nge2 {[%emt 0:01:30]} Nge7 {[%emt 0:01:30]} 7. O-O {[%emt 0:03:30]} d6 {[%emt 0:02:30]} 8. a3 {[%emt 0:04:30]} O-O {[%emt 0:00:30]} 9. Rb1 {[%emt 0:01:30]} a5 {[%emt 0:12:30]} 10. h3 {[%emt 0:04:30]} Rb8 {[%emt 0:02:30]} 11. Nd5 {[%emt 0:05:30]} b5 {[%emt 0:03:30]} 12. d3 {[%emt 0:11:30]} bxc4 {[%emt 0:14:30]} 13. dxc4 {[%emt 0:01:30]} Ba6 {[%emt 0:00:30]} 14. Qa4 {[%emt 0:06:30]} Nxd5 {[%emt 0:10:30]} 15. Bxd5 {[%emt 0:01:30]} Ne7 {[%emt 0:00:30]} 16. Bg2 {[%emt 0:01:30]} d5 {[%emt 0:00:30]} 17. Bd2 {[%emt 0:08:30]} Bxc4 {[%emt 0:03:30]} 18. Rfe1 {[%emt 0:11:30]} Qd6 {[%emt 0:14:30]} 19. b4 {[%emt 0:05:30]} cxb4 {[%emt 0:09:30]} 20. axb4 {[%emt 0:01:30]} Bd3 {[%emt 0:00:30]} 21. Rb2 {[%emt 0:00:30]} e4 {[%emt 0:00:34]} 22. Nd4 {[%emt 0:00:30]} Nf5 {[%emt 0:05:04]} 23. b5 {[%emt 0:02:26]} Nxd4 {[%emt 0:01:38]} 24. exd4 {[%emt 0:00:19]} Qb6 {[%emt 0:00:13]} 25. Bxa5 {[%emt 0:07:25]} Qxd4 {[%emt 0:00:33]} 26. Rb4 {[%emt 0:00:25]} Qc5 {[%emt 0:03:31]} 27. b6 {[%emt 0:05:53]} Ra8 {[%emt 0:02:40]} 0-1

[Event "4th Sabbiadoro-Master 2018"]
[Site "Lignano Sabbiadoro"]
[Date "2018.08.03"]
[Round "7.10"]
[White "Grochowalski, Pawel"]
[Black "Mufic, Goran"]
[Result "1/2-1/2"]
[ECO "D06"]
[WhiteElo "2049"]
[BlackElo "2299"]
[Annotator "NA"]
[PlyCount "27"]
[EventDate "2018.07.29"]
[EventType "swiss"]
[EventCountry "ITA"]
[SourceTitle "playchess.com"]
[Source "ChessBase"]
[SourceQuality "1"]
[TimeControl "5400+30"]

1. d4 {[%emt 0:00:30]} d5 {[%emt 0:00:30]} 2. c4 {[%emt 0:00:00]} Bf5 {[%emt 0:00:00]} 3. cxd5 {[%emt 0:01:00]} Bxb1 {[%emt 0:00:00]} 4. Qa4+ {[%emt 0:00:00]} c6 {[%emt 0:00:00]} 5. dxc6 {[%emt 0:00:00]} Nxc6 {[%emt 0:00:00]} 6. Rxb1 {[%emt 0:00:30]} Qxd4 {[%emt 0:00:30]} 7. Qxd4 {[%emt 0:00:30]} Nxd4 {[%emt 0:00:00]} 8. e3 {[%emt 0:00:30]} Nc6 {[%emt 0:00:00]} 9. Bb5 {[%emt 0:01:30]} e6 {[%emt 0:05:30]} 10. Bxc6+ {[%emt 0:02:30]} bxc6 {[%emt 0:00:00]} 11. Bd2 {[%emt 0:00:00]} Nf6 {[%emt 0:01:00]} 12. Nf3 {[%emt 0:01:00]} Bd6 {[%emt 0:04:30]} 13. Ke2 {[%emt 0:00:30]} c5 {[%emt 0:01:30]} 14. Bc3 {[%emt 0:07:30]} 1/2-1/2

[Event "4th Sabbiadoro-Master 2018"]
[Site "Lignano Sabbiadoro"]
[Date "2018.08.04"]
[Round "8.1"]
[White "Kalegin, Evgenij"]
[Black "Brankovic, Dejan"]
[Result "1-0"]
[ECO "B51"]
[WhiteElo "2431"]
[BlackElo "2330"]
[Annotator "NA"]
[PlyCount "87"]
[EventDate "2018.07.29"]
[EventType "swiss"]
[EventCountry "ITA"]
[SourceTitle "playchess.com"]
[Source "ChessBase"]
[SourceQuality "1"]
[TimeControl "5400+30"]

1. e4 {[%emt 0:00:30]} c5 {[%emt 0:00:30]} 2. Nf3 {[%emt 0:00:00]} d6 {[%emt 0:00:30]} 3. Bb5+ {[%emt 0:01:00]} Nd7 {[%emt 0:00:30]} 4. c3 {[%emt 0:01:30]} Ngf6 {[%emt 0:00:00]} 5. Qe2 {[%emt 0:00:30]} a6 {[%emt 0:00:00]} 6. Ba4 {[%emt 0:00:30]} b5 {[%emt 0:00:30]} 7. Bc2 {[%emt 0:00:00]} Bb7 {[%emt 0:01:30]} 8. O-O {[%emt 0:01:00]} e5 {[%emt 0:03:30]} 9. d4 {[%emt 0:00:30]} Be7 {[%emt 0:01:30]} 10. dxe5 {[%emt 0:03:30]} dxe5 {[%emt 0:05:30]} 11. Rd1 {[%emt 0:02:30]} Qc7 {[%emt 0:00:30]} 12. c4 {[%emt 0:00:30]} bxc4 {[%emt 0:23:30]} 13. Nbd2 {[%emt 0:02:30]} c3 {[%emt 0:12:30]} 14. Nc4 {[%emt 0:01:30]} O-O {[%emt 0:00:30]} 15. bxc3 {[%emt 0:01:30]} Rfe8 {[%emt 0:02:30]} 16. Bg5 {[%emt 0:04:30]} Bf8 {[%emt 0:09:30]} 17. Rd2 {[%emt 0:09:30]} h6 {[%emt 0:01:30]} 18. Bh4 {[%emt 0:00:30]} g5 {[%emt 0:02:30]} 19. Bg3 {[%emt 0:01:30]} Nh5 {[%emt 0:00:00]} 20. Qd1 {[%emt 0:11:30]} Red8 {[%emt 0:21:34]} 21. Nfxe5 {[%emt 0:05:30]} Nxg3 {[%emt 0:00:20]} 22. Nxd7 {[%emt 0:00:30]} Bg7 {[%emt 0:01:59]} 23. hxg3 {[%emt 0:13:30]} Bxc3 {[%emt 0:00:03]} 24. Ba4 {[%emt 0:00:30]} Bc6 {[%emt 0:04:02]} 25. Bxc6 {[%emt 0:03:30]} Qxc6 {[%emt 0:00:55]} 26. Rd6 {[%emt 0:02:30]} Qxe4 {[%emt 0:00:22]} 27. Rc1 {[%emt 0:06:30]} Bd4 {[%emt 0:02:18]} 28. Qf3 {[%emt 0:01:30]} Qxf3 {[%emt 0:00:28]} 29. gxf3 {[%emt 0:00:30]} Kg7 {[%emt 0:02:17]} 30. Kf1 {[%emt 0:04:30]} Ra7 {[%emt 0:00:47]} 31. Nxc5 {[%emt 0:01:30]} Rxd6 {[%emt 0:00:50]} 32. Nxd6 {[%emt 0:00:00]} Kg6 {[%emt 0:00:14]} 33. Nb3 {[%emt 0:00:00]} Be5 {[%emt 0:00:54]} 34. Rc6 {[%emt 0:00:30]} f6 {[%emt 0:00:07]} 35. Nc4 {[%emt 0:00:30]} Bc3 {[%emt 0:00:14]} 36. Nca5 {[%emt 0:02:30]} Bb4 {[%emt 0:00:19]} 37. g4 {[%emt 0:00:59]} Re7 {[%emt 0:02:42]} 38. Rxa6 {[%emt 0:00:44]} Re1+ {[%emt 0:00:04]} 39. Kg2 {[%emt 0:00:00]} Re2 {[%emt 0:00:09]} 40. Nc6 {[%emt 0:00:32]} Bc3 {[%emt 0:01:27]} 41. Ncd4 {[%emt 0:02:01]} Rb2 {[%emt 0:00:19]} 42. Nf5 {[%emt 0:01:10]} Bb4 {[%emt 0:00:33]} 43. Ra7 {[%emt 0:00:34]} Bf8 {[%emt 0:00:05]} 44. Nbd4 {[%emt 0:00:36]} 1-0

[Event "4th Sabbiadoro-Master 2018"]
[Site "Lignano Sabbiadoro"]
[Date "2018.08.04"]
[Round "8.2"]
[White "Bentivegna, Francesco"]
[Black "Migliorini, Matteo"]
[Result "1-0"]
[ECO "B23"]
[WhiteElo "2248"]
[BlackElo "2130"]
[Annotator "NA"]
[PlyCount "89"]
[EventDate "2018.07.29"]
[EventType "swiss"]
[EventCountry "ITA"]
[SourceTitle "playchess.com"]
[Source "ChessBase"]
[SourceQuality "1"]
[TimeControl "5400+30"]

1. e4 {[%emt 0:03:30]} c5 {[%emt 0:00:30]} 2. Nc3 {[%emt 0:00:30]} Nc6 {[%emt 0:00:00]} 3. Bb5 {[%emt 0:00:00]} g6 {[%emt 0:02:00]} 4. Bxc6 {[%emt 0:00:00]} bxc6 {[%emt 0:01:30]} 5. d3 {[%emt 0:03:30]} Bg7 {[%emt 0:00:30]} 6. f4 {[%emt 0:01:30]} d6 {[%emt 0:01:30]} 7. Nf3 {[%emt 0:00:30]} Rb8 {[%emt 0:00:30]} 8. O-O {[%emt 0:01:30]} e6 {[%emt 0:07:30]} 9. Qe1 {[%emt 0:04:30]} Ne7 {[%emt 0:01:30]} 10. b3 {[%emt 0:02:30]} O-O {[%emt 0:11:30]} 11. Bd2 {[%emt 0:01:30]} f6 {[%emt 0:10:30]} 12. Kh1 {[%emt 0:09:30]} Kh8 {[%emt 0:14:30]} 13. e5 {[%emt 0:10:30]} fxe5 {[%emt 0:10:30]} 14. fxe5 {[%emt 0:00:30]} d5 {[%emt 0:00:30]} 15. Na4 {[%emt 0:10:30]} c4 {[%emt 0:04:30]} 16. dxc4 {[%emt 0:00:30]} dxc4 {[%emt 0:00:30]} 17. Bb4 {[%emt 0:07:30]} cxb3 {[%emt 0:08:30]} 18. axb3 {[%emt 0:00:00]} Rf5 {[%emt 0:02:45]} 19. Rd1 {[%emt 0:05:00]} Qe8 {[%emt 0:03:58]} 20. Bd6 {[%emt 0:00:30]} Ba6 {[%emt 0:01:38]} 21. Rf2 {[%emt 0:07:30]} Rd8 {[%emt 0:00:29]} 22. Nc5 {[%emt 0:02:30]} Bc8 {[%emt 0:00:12]} 23. Rfd2 {[%emt 0:01:30]} Qf7 {[%emt 0:02:03]} 24. Nd4 {[%emt 0:06:36]} Rf4 {[%emt 0:06:08]} 25. g3 {[%emt 0:01:33]} Rxd4 {[%emt 0:06:44]} 26. Rxd4 {[%emt 0:00:12]} Nf5 {[%emt 0:01:25]} 27. R4d3 {[%emt 0:02:07]} Nxd6 {[%emt 0:00:46]} 28. exd6 {[%emt 0:00:42]} Qf5 {[%emt 0:00:16]} 29. d7 {[%emt 0:01:05]} Qxc5 {[%emt 0:00:17]} 30. dxc8=Q {[%emt 0:00:25]} Rxc8 {[%emt 0:00:31]} 31. Rd8+ {[%emt 0:01:27]} Rxd8 {[%emt 0:00:03]} 32. Rxd8+ {[%emt 0:00:01]} Bf8 {[%emt 0:00:07]} 33. Qxe6 {[%emt 0:05:47]} Qf2 {[%emt 0:00:05]} 34. Qe5+ {[%emt 0:00:47]} Kg8 {[%emt 0:00:02]} 35. Qf4 {[%emt 0:00:16]} Qe1+ {[%emt 0:00:28]} 36. Kg2 {[%emt 0:00:02]} Qe2+ {[%emt 0:00:09]} 37. Qf2 {[%emt 0:00:20]} Qe4+ {[%emt 0:00:37]} 38. Kg1 {[%emt 0:00:23]} Qe7 {[%emt 0:00:17]} 39. Ra8 {[%emt 0:01:00]} Qb4 {[%emt 0:00:55]} 40. h4 {[%emt 0:03:00]} a5 {[%emt 0:00:51]} 41. Kh2 {[%emt 0:00:06]} Qa3 {[%emt 0:02:03]} 42. c3 {[%emt 0:00:27]} Qe7 {[%emt 0:00:56]} 43. Rxa5 {[%emt 0:00:19]} Qb7 {[%emt 0:00:05]} 44. b4 {[%emt 0:00:59]} Bd6 {[%emt 0:00:13]} 45. Ra7 {[%emt 0:00:54]} 1-0

[Event "4th Sabbiadoro-Master 2018"]
[Site "Lignano Sabbiadoro"]
[Date "2018.08.04"]
[Round "8.3"]
[White "Damia, Angelo"]
[Black "Zuttioni, Federico"]
[Result "1-0"]
[ECO "A22"]
[WhiteElo "2313"]
[BlackElo "2141"]
[Annotator "NA"]
[PlyCount "73"]
[EventDate "2018.07.29"]
[EventType "swiss"]
[EventCountry "ITA"]
[SourceTitle "playchess.com"]
[Source "ChessBase"]
[SourceQuality "1"]
[TimeControl "5400+30"]

1. c4 {[%emt 0:00:30]} Nf6 {[%emt 0:00:30]} 2. Nc3 {[%emt 0:00:00]} e5 {[%emt 0:04:30]} 3. f4 {[%emt 0:01:00]} exf4 {[%emt 0:04:30]} 4. d4 {[%emt 0:00:30]} Bb4 {[%emt 0:06:30]} 5. Bxf4 {[%emt 0:00:30]} O-O {[%emt 0:09:30]} 6. Nf3 {[%emt 0:03:30]} Re8 {[%emt 0:02:30]} 7. e3 {[%emt 0:01:30]} c5 {[%emt 0:24:30]} 8. Bd3 {[%emt 0:07:30]} d5 {[%emt 0:19:30]} 9. O-O {[%emt 0:00:30]} Bxc3 {[%emt 0:02:30]} 10. bxc3 {[%emt 0:00:00]} Be6 {[%emt 0:03:18]} 11. Ng5 {[%emt 0:03:00]} Nbd7 {[%emt 0:01:40]} 12. Qb1 {[%emt 0:01:30]} h6 {[%emt 0:05:04]} 13. Nxe6 {[%emt 0:01:30]} fxe6 {[%emt 0:01:31]} 14. Bg6 {[%emt 0:03:30]} b6 {[%emt 0:00:55]} 15. Bxe8 {[%emt 0:00:30]} Qxe8 {[%emt 0:00:03]} 16. cxd5 {[%emt 0:00:30]} exd5 {[%emt 0:00:20]} 17. Qf5 {[%emt 0:00:30]} Qe7 {[%emt 0:01:59]} 18. Rae1 {[%emt 0:01:30]} Re8 {[%emt 0:01:16]} 19. e4 {[%emt 0:05:30]} dxe4 {[%emt 0:01:01]} 20. d5 {[%emt 0:00:00]} c4 {[%emt 0:01:30]} 21. d6 {[%emt 0:01:00]} Qe6 {[%emt 0:01:47]} 22. Qxe6+ {[%emt 0:00:30]} Rxe6 {[%emt 0:00:02]} 23. Rd1 {[%emt 0:00:30]} Nc5 {[%emt 0:03:13]} 24. Rd4 {[%emt 0:02:30]} e3 {[%emt 0:02:13]} 25. Bg3 {[%emt 0:00:30]} e2 {[%emt 0:01:13]} 26. Re1 {[%emt 0:01:30]} b5 {[%emt 0:00:50]} 27. Rd2 {[%emt 0:00:00]} Re3 {[%emt 0:00:17]} 28. Bf2 {[%emt 0:00:00]} Rd3 {[%emt 0:00:06]} 29. Rexe2 {[%emt 0:00:30]} Ncd7 {[%emt 0:01:09]} 30. Rxd3 {[%emt 0:00:30]} cxd3 {[%emt 0:00:06]} 31. Rd2 {[%emt 0:00:00]} a6 {[%emt 0:00:13]} 32. Rxd3 {[%emt 0:00:00]} Kf7 {[%emt 0:00:26]} 33. Bd4 {[%emt 0:01:30]} Ne8 {[%emt 0:00:16]} 34. Rf3+ {[%emt 0:00:30]} Kg8 {[%emt 0:00:28]} 35. Re3 {[%emt 0:01:30]} Nxd6 {[%emt 0:00:29]} 36. Re7 {[%emt 0:00:00]} Nf6 {[%emt 0:00:08]} 37. Bxf6 {[%emt 0:00:00]} 1-0

[Event "4th Sabbiadoro-Master 2018"]
[Site "Lignano Sabbiadoro"]
[Date "2018.08.04"]
[Round "8.4"]
[White "Ristic, Nenad"]
[Black "Favilli, Edoardo"]
[Result "1-0"]
[ECO "C06"]
[WhiteElo "2356"]
[BlackElo "2116"]
[Annotator "NA"]
[PlyCount "149"]
[EventDate "2018.07.29"]
[EventType "swiss"]
[EventCountry "ITA"]
[SourceTitle "playchess.com"]
[Source "ChessBase"]
[SourceQuality "1"]
[TimeControl "5400+30"]

1. e4 {[%emt 0:00:30]} e6 {[%emt 0:06:30]} 2. d4 {[%emt 0:00:00]} d5 {[%emt 0:00:30]} 3. Nd2 {[%emt 0:00:00]} Nf6 {[%emt 0:00:00]} 4. e5 {[%emt 0:00:30]} Nfd7 {[%emt 0:00:00]} 5. Bd3 {[%emt 0:00:30]} c5 {[%emt 0:00:30]} 6. c3 {[%emt 0:00:30]} Nc6 {[%emt 0:00:30]} 7. Ne2 {[%emt 0:00:00]} cxd4 {[%emt 0:00:00]} 8. cxd4 {[%emt 0:00:00]} f6 {[%emt 0:00:00]} 9. exf6 {[%emt 0:00:30]} Nxf6 {[%emt 0:00:30]} 10. O-O {[%emt 0:00:00]} Bd6 {[%emt 0:00:30]} 11. Nf3 {[%emt 0:00:00]} O-O {[%emt 0:00:30]} 12. Bf4 {[%emt 0:00:30]} Bxf4 {[%emt 0:00:30]} 13. Nxf4 {[%emt 0:00:30]} Ne4 {[%emt 0:01:30]} 14. Qc1 {[%emt 0:01:30]} Ng5 {[%emt 0:00:30]} 15. Nxg5 {[%emt 0:01:30]} Qxg5 {[%emt 0:00:30]} 16. Ne2 {[%emt 0:05:30]} Qf6 {[%emt 0:07:30]} 17. Qe3 {[%emt 0:00:30]} Bd7 {[%emt 0:00:30]} 18. Bb5 {[%emt 0:04:30]} Rac8 {[%emt 0:22:30]} 19. Bxc6 {[%emt 0:03:30]} Bxc6 {[%emt 0:00:30]} 20. Rfe1 {[%emt 0:01:30]} Be8 {[%emt 0:09:30]} 21. Rac1 {[%emt 0:01:30]} Bg6 {[%emt 0:11:30]} 22. h3 {[%emt 0:03:30]} h6 {[%emt 0:18:38]} 23. Rc3 {[%emt 0:04:30]} Rxc3 {[%emt 0:06:06]} 24. Nxc3 {[%emt 0:00:30]} Bf7 {[%emt 0:01:24]} 25. Nb5 {[%emt 0:02:30]} Qe7 {[%emt 0:01:20]} 26. Qb3 {[%emt 0:06:30]} a6 {[%emt 0:01:47]} 27. Nc3 {[%emt 0:00:30]} Qf6 {[%emt 0:00:07]} 28. Qd1 {[%emt 0:05:30]} Rc8 {[%emt 0:02:04]} 29. Qd2 {[%emt 0:01:30]} Rc4 {[%emt 0:00:21]} 30. Ne2 {[%emt 0:00:30]} Bg6 {[%emt 0:01:33]} 31. Rc1 {[%emt 0:02:30]} Rxc1+ {[%emt 0:00:45]} 32. Qxc1 {[%emt 0:01:30]} e5 {[%emt 0:00:47]} 33. Qc3 {[%emt 0:02:30]} exd4 {[%emt 0:03:32]} 34. Qxd4 {[%emt 0:00:00]} Qxd4 {[%emt 0:02:03]} 35. Nxd4 {[%emt 0:00:00]} Kf7 {[%emt 0:00:00]} 36. f4 {[%emt 0:00:30]} Bb1 {[%emt 0:01:04]} 37. a3 {[%emt 0:00:30]} Ke7 {[%emt 0:00:17]} 38. Kf2 {[%emt 0:00:30]} Kd6 {[%emt 0:00:08]} 39. b4 {[%emt 0:00:00]} Be4 {[%emt 0:00:29]} 40. g4 {[%emt 0:00:00]} b6 {[%emt 0:00:53]} 41. Ke3 {[%emt 0:00:30]} Bb1 {[%emt 0:01:41]} 42. Ne2 {[%emt 0:01:30]} Be4 {[%emt 0:00:14]} 43. h4 {[%emt 0:00:30]} Kc6 {[%emt 0:00:40]} 44. g5 {[%emt 0:03:30]} hxg5 {[%emt 0:00:07]} 45. fxg5 {[%emt 0:00:30]} g6 {[%emt 0:01:24]} 46. Nc3 {[%emt 0:00:30]} Bf5 {[%emt 0:00:30]} 47. Kd4 {[%emt 0:00:30]} Be6 {[%emt 0:00:20]} 48. Ke5 {[%emt 0:00:30]} Bf7 {[%emt 0:00:06]} 49. Kf6 {[%emt 0:02:30]} d4 {[%emt 0:00:26]} 50. Ne2 {[%emt 0:00:30]} d3 {[%emt 0:00:29]} 51. Nc3 {[%emt 0:00:30]} Be8 {[%emt 0:00:46]} 52. Ke5 {[%emt 0:05:30]} Bd7 {[%emt 0:00:43]} 53. Kf4 {[%emt 0:00:30]} Kd6 {[%emt 0:00:41]} 54. Ke4 {[%emt 0:03:30]} Bf5+ {[%emt 0:00:07]} 55. Kd4 {[%emt 0:00:30]} d2 {[%emt 0:00:47]} 56. Ke3 {[%emt 0:00:00]} Ke5 {[%emt 0:00:06]} 57. Kxd2 {[%emt 0:00:00]} Kd4 {[%emt 0:00:13]} 58. Na4 {[%emt 0:01:30]} b5 {[%emt 0:01:07]} 59. Nc5 {[%emt 0:01:30]} Bc8 {[%emt 0:00:01]} 60. h5 {[%emt 0:00:30]} gxh5 {[%emt 0:00:01]} 61. g6 {[%emt 0:00:30]} Bf5 {[%emt 0:00:11]} 62. g7 {[%emt 0:00:30]} Bh7 {[%emt 0:00:05]} 63. Nxa6 {[%emt 0:01:30]} Bg8 {[%emt 0:02:01]} 64. Nc7 {[%emt 0:01:30]} Ke5 {[%emt 0:00:53]} 65. Ke3 {[%emt 0:00:30]} Kf6 {[%emt 0:00:22]} 66. Nxb5 {[%emt 0:00:00]} Kxg7 {[%emt 0:00:06]} 67. a4 {[%emt 0:00:00]} Kf6 {[%emt 0:00:28]} 68. a5 {[%emt 0:00:30]} Ke7 {[%emt 0:00:42]} 69. Kd4 {[%emt 0:03:30]} Kd7 {[%emt 0:00:01]} 70. Kc5 {[%emt 0:00:00]} Kc8 {[%emt 0:00:38]} 71. Nd6+ {[%emt 0:02:00]} Kb8 {[%emt 0:00:17]} 72. Kb6 {[%emt 0:00:30]} h4 {[%emt 0:00:34]} 73. a6 {[%emt 0:00:30]} Bc4 {[%emt 0:01:15]} 74. a7+ {[%emt 0:00:00]} Ka8 {[%emt 0:00:02]} 75. Ne8 {[%emt 0:00:00]} 1-0

[Event "4th Sabbiadoro-Master 2018"]
[Site "Lignano Sabbiadoro"]
[Date "2018.08.04"]
[Round "8.5"]
[White "Micottis, Dorian"]
[Black "Nester, Ihor"]
[Result "1/2-1/2"]
[ECO "C77"]
[WhiteElo "2295"]
[BlackElo "2305"]
[Annotator "NA"]
[PlyCount "69"]
[EventDate "2018.07.29"]
[EventType "swiss"]
[EventCountry "ITA"]
[SourceTitle "playchess.com"]
[Source "ChessBase"]
[SourceQuality "1"]
[TimeControl "5400+30"]

1. e4 {[%emt 0:00:30]} e5 {[%emt 0:00:30]} 2. Nf3 {[%emt 0:00:00]} Nc6 {[%emt 0:00:00]} 3. Bb5 {[%emt 0:00:00]} a6 {[%emt 0:00:00]} 4. Ba4 {[%emt 0:00:00]} Nf6 {[%emt 0:00:30]} 5. O-O {[%emt 0:00:00]} Be7 {[%emt 0:00:00]} 6. d3 {[%emt 0:00:30]} b5 {[%emt 0:00:00]} 7. Bb3 {[%emt 0:00:00]} d6 {[%emt 0:00:30]} 8. a3 {[%emt 0:00:00]} O-O {[%emt 0:01:30]} 9. Nc3 {[%emt 0:00:30]} Na5 {[%emt 0:16:30]} 10. Ba2 {[%emt 0:01:30]} c5 {[%emt 0:00:30]} 11. b4 {[%emt 0:00:30]} cxb4 {[%emt 0:12:30]} 12. axb4 {[%emt 0:00:00]} Nc6 {[%emt 0:00:30]} 13. Nd5 {[%emt 0:02:00]} Nxd5 {[%emt 0:02:30]} 14. Bxd5 {[%emt 0:00:00]} Qc7 {[%emt 0:02:30]} 15. c3 {[%emt 0:18:00]} Bb7 {[%emt 0:07:30]} 16. Qb3 {[%emt 0:06:30]} Bf6 {[%emt 0:00:30]} 17. Bg5 {[%emt 0:03:30]} Bxg5 {[%emt 0:17:30]} 18. Nxg5 {[%emt 0:00:30]} h6 {[%emt 0:00:30]} 19. Nh3 {[%emt 0:07:30]} Ne7 {[%emt 0:00:30]} 20. Bxb7 {[%emt 0:02:30]} Qxb7 {[%emt 0:00:30]} 21. f4 {[%emt 0:00:30]} exf4 {[%emt 0:18:28]} 22. Nxf4 {[%emt 0:01:30]} a5 {[%emt 0:02:43]} 23. bxa5 {[%emt 0:04:30]} Rxa5 {[%emt 0:00:05]} 24. Rxa5 {[%emt 0:00:30]} Qb6+ {[%emt 0:00:00]} 25. d4 {[%emt 0:00:00]} Qxa5 {[%emt 0:00:06]} 26. Ne6 {[%emt 0:00:00]} Rc8 {[%emt 0:01:33]} 27. Nxg7 {[%emt 0:04:30]} d5 {[%emt 0:06:48]} 28. Nf5 {[%emt 0:15:30]} Nxf5 {[%emt 0:00:10]} 29. Rxf5 {[%emt 0:00:30]} Rxc3 {[%emt 0:05:05]} 30. Qxd5 {[%emt 0:00:30]} Rc1+ {[%emt 0:00:09]} 31. Rf1 {[%emt 0:01:30]} Rxf1+ {[%emt 0:00:17]} 32. Kxf1 {[%emt 0:00:00]} Qa1+ {[%emt 0:00:14]} 33. Kf2 {[%emt 0:00:00]} Qb2+ {[%emt 0:00:23]} 34. Kf3 {[%emt 0:01:30]} b4 {[%emt 0:00:15]} 35. Qc5 {[%emt 0:08:30]} 1/2-1/2

[Event "4th Sabbiadoro-Master 2018"]
[Site "Lignano Sabbiadoro"]
[Date "2018.08.04"]
[Round "8.6"]
[White "Sgnaolin, Davide"]
[Black "Barberi, Alessandro"]
[Result "1-0"]
[ECO "B22"]
[WhiteElo "2267"]
[BlackElo "2044"]
[Annotator "NA"]
[PlyCount "41"]
[EventDate "2018.07.29"]
[EventType "swiss"]
[EventCountry "ITA"]
[SourceTitle "playchess.com"]
[Source "ChessBase"]
[SourceQuality "1"]
[TimeControl "5400+30"]

1. e4 {[%emt 0:00:30]} c5 {[%emt 0:00:30]} 2. c3 {[%emt 0:00:00]} d5 {[%emt 0:00:30]} 3. exd5 {[%emt 0:00:00]} Qxd5 {[%emt 0:00:30]} 4. d4 {[%emt 0:00:00]} cxd4 {[%emt 0:00:30]} 5. cxd4 {[%emt 0:01:00]} Nc6 {[%emt 0:00:30]} 6. Nf3 {[%emt 0:01:30]} Bg4 {[%emt 0:01:30]} 7. Be2 {[%emt 0:01:30]} e6 {[%emt 0:00:30]} 8. Nc3 {[%emt 0:02:30]} Bb4 {[%emt 0:02:30]} 9. O-O {[%emt 0:01:30]} Bxc3 {[%emt 0:06:30]} 10. bxc3 {[%emt 0:00:30]} Nge7 {[%emt 0:00:00]} 11. h3 {[%emt 0:05:30]} Bh5 {[%emt 0:01:00]} 12. Rb1 {[%emt 0:04:30]} O-O {[%emt 0:01:30]} 13. Rb5 {[%emt 0:02:30]} Bxf3 {[%emt 0:03:30]} 14. Rxd5 {[%emt 0:00:30]} Bxe2 {[%emt 0:00:00]} 15. Qxe2 {[%emt 0:00:30]} Nxd5 {[%emt 0:00:00]} 16. Bd2 {[%emt 0:15:30]} Rfd8 {[%emt 0:00:30]} 17. Qg4 {[%emt 0:07:30]} Na5 {[%emt 0:03:30]} 18. Bh6 {[%emt 0:04:30]} g6 {[%emt 0:03:30]} 19. Re1 {[%emt 0:08:30]} Rd6 {[%emt 0:01:30]} 20. Qe2 {[%emt 0:03:30]} Rc8 {[%emt 0:00:30]} 21. Qe5 {[%emt 0:00:00]} 1-0

[Event "4th Sabbiadoro-Master 2018"]
[Site "Lignano Sabbiadoro"]
[Date "2018.08.04"]
[Round "8.7"]
[White "Simonetto, Andrea"]
[Black "Olivetti, Davide"]
[Result "1/2-1/2"]
[ECO "C25"]
[WhiteElo "2173"]
[BlackElo "2234"]
[Annotator "NA"]
[PlyCount "40"]
[EventDate "2018.07.29"]
[EventType "swiss"]
[EventCountry "ITA"]
[SourceTitle "playchess.com"]
[Source "ChessBase"]
[SourceQuality "1"]
[TimeControl "5400+30"]

1. e4 {[%emt 0:00:30]} e5 {[%emt 0:00:30]} 2. Nc3 {[%emt 0:00:00]} Bc5 {[%emt 0:00:00]} 3. Na4 {[%emt 0:00:00]} Bxf2+ {[%emt 0:00:00]} 4. Kxf2 {[%emt 0:00:30]} Qh4+ {[%emt 0:00:30]} 5. Ke3 {[%emt 0:00:30]} Qf4+ {[%emt 0:00:30]} 6. Kd3 {[%emt 0:00:00]} d5 {[%emt 0:00:30]} 7. Kc3 {[%emt 0:00:00]} Qxe4 {[%emt 0:00:00]} 8. Kb3 {[%emt 0:00:30]} Na6 {[%emt 0:00:00]} 9. a3 {[%emt 0:00:30]} Qxa4+ {[%emt 0:00:30]} 10. Kxa4 {[%emt 0:00:30]} Nc5+ {[%emt 0:00:30]} 11. Kb4 {[%emt 0:00:30]} a5+ {[%emt 0:00:30]} 12. Kxc5 {[%emt 0:00:00]} Ne7 {[%emt 0:00:00]} 13. Bb5+ {[%emt 0:00:00]} Kd8 {[%emt 0:00:00]} 14. Bc6 {[%emt 0:00:30]} b6+ {[%emt 0:00:30]} 15. Kb5 {[%emt 0:00:00]} Nxc6 {[%emt 0:00:30]} 16. Kxc6 {[%emt 0:00:00]} Bb7+ {[%emt 0:00:00]} 17. Kb5 {[%emt 0:00:30]} Ba6+ {[%emt 0:00:00]} 18. Kc6 {[%emt 0:00:30]} Bb7+ {[%emt 0:00:30]} 19. Kb5 {[%emt 0:00:00]} Ba6+ {[%emt 0:00:00]} 20. Kc6 {[%emt 0:00:00]} Bb7+ {[%emt 0:01:00]} 1/2-1/2